fUST/lending_fUST_20250624
["ID","MTS","AMOUNT","RATE_DAILY","PERIOD"]
[367184270,1750695093942,-472.68,0.00023785,2]
[367184271,1750695093953,-1833.22,0.00023785,2]
[367184272,1750695093965,-717.95,0.00023785,2]
[367184273,1750695093981,-703.62,0.00023785,2]
[367184274,1750695093992,-460.0,0.00023786,2]
[367184275,1750695094004,-460.0,0.00023786,2]
[367184276,1750695094015,-460.0,0.00023787,2]
[367184277,1750695094026,-899.93,0.00023787,2]
[367184278,1750695094038,-1247.69,0.00023787,2]
[367184279,1750695094049,-1042.81,0.00023787,2]
[367184280,1750695094060,-470.17,0.00023787,2]
[367184281,1750695094072,-460.0,0.00023787,2]
[367184282,1750695094083,-460.0,0.00023787,2]
[367184283,1750695094094,-1298.26,0.00023787,2]
[367184284,1750695094106,-2612.41,0.00023787,2]
[367184285,1750695094119,-460.0,0.00023787,2]
[367184286,1750695094129,-460.0,0.00023787,2]
[367184287,1750695094140,-460.0,0.00023787,2]
[367184288,1750695094151,-535.48,0.00023787,2]
[367184289,1750695094164,-460.0,0.00023787,2]
[367184290,1750695094175,-541.1,0.00023787,2]
[367184291,1750695094188,-356.93352142,0.00023787,2]
[367184292,1750695094198,-480.44,0.00023787,2]
[367184293,1750695094209,-460.0,0.00023787,2]
[367184294,1750695094221,-1061.12,0.00023787,2]
[367184295,1750695094232,-1081.71,0.00023787,2]
[367184296,1750695094243,-863.96,0.00023787,2]
[367184297,1750695094254,-667.4,0.00023787,2]
[367184298,1750695094264,-814.51,0.00023787,2]
[367184299,1750695094275,-1796.51,0.00023787,2]
[367184300,1750695094285,-620.23,0.00023787,2]
[367184301,1750695094295,-460.0,0.00023787,2]
[367184302,1750695094306,-908.71,0.00023787,2]
[367184303,1750695094316,-1836.22,0.00023787,2]
[367184304,1750695094326,-151.0,0.00023787,7]
[367184305,1750695094337,-293.713884,0.00023787,7]
[367184306,1750695094348,-2045.52,0.00023787,2]
[367184307,1750695094359,-460.0,0.00023787,2]
[367184308,1750695094539,-460.0,0.00023787,2]
[367184309,1750695094550,-1612.44,0.00023787,2]
[367184310,1750695094561,-1029.94,0.00023787,2]
[367184311,1750695094571,-6941.15,0.00023787,2]
[367184312,1750695094582,-6321.75,0.00023787,2]
[367184313,1750695094591,-794.47,0.00023787,2]
[367184314,1750695094601,-1186.537698,0.00023787,2]
[367184315,1750695094611,-1186.537698,0.00023787,2]
[367184316,1750695094621,-460.0,0.00023787,2]
[367184317,1750695094631,-460.0,0.00023787,2]
[367184318,1750695094640,-6105.4,0.00023787,2]
[367184319,1750695094650,-4430.2,0.00023787,2]
[367184320,1750695094659,-893.18,0.00023787,2]
[367184321,1750695094669,-1681.36,0.00023787,2]
[367184322,1750695094680,-550.8,0.00023787,2]
[367184323,1750695094689,-945.85,0.00023787,2]
[367184324,1750695094699,-1150.64,0.00023787,2]
[367184325,1750695094709,-505.55,0.00023787,2]
[367184326,1750695094722,-460.0,0.00023787,2]
[367184327,1750695094732,-7241.11,0.00023787,2]
[367184328,1750695094742,-4135.45,0.00023787,2]
[367184329,1750695094752,-701.76,0.00023787,2]
[367184330,1750695094763,-579.96,0.00023787,2]
[367184331,1750695094773,-460.0,0.00023787,2]
[367184332,1750695094783,-503.24,0.00023787,2]
[367184333,1750695094793,-950.84,0.00023787,2]
[367184334,1750695094803,-742.78,0.00023787,2]
[367184335,1750695094814,-1064.83,0.00023787,2]
[367184336,1750695094823,-4500.0,0.000238,2]
[367184337,1750695094833,-764.78,0.000238,7]
[367184338,1750695094844,-338.794941,0.000238,7]
[367184339,1750695094854,-338.794941,0.000238,7]
[367184340,1750695094864,-1000.0,0.00023821,2]
[367184341,1750695094875,-1000.0,0.00023821,2]
[367184342,1750695094885,-1081.17648423,0.00023821,2]
[367184343,1750695094895,-1000.0,0.00023821,2]
[367184344,1750695094904,-559.17432975,0.00023821,2]
[367184345,1750695094915,-151.0,0.00023821,7]
[367184346,1750695094925,-581.96,0.00023851,2]
[367184347,1750695094935,-460.0,0.00023851,2]
[367184348,1750695094945,-460.0,0.00023851,2]
[367184349,1750695094954,-572.39,0.00023851,2]
[367184350,1750695094964,-460.0,0.00023851,2]
[367184351,1750695094975,-460.0,0.00023851,2]
[367184352,1750695094985,-1389.87,0.00023851,2]
[367184353,1750695094994,-992.22,0.00023851,2]
[367184354,1750695095004,-460.0,0.00023851,2]
[367184355,1750695095014,-460.0,0.00023851,2]
[367184356,1750695095023,-460.0,0.00023851,2]
[367184357,1750695095032,-200.0,0.00023851,2]
[367184358,1750695095043,-251.36173677,0.00023851,2]
[367184359,1750695095052,-460.0,0.00023851,2]
[367184360,1750695095061,-460.0,0.00023851,2]
[367184361,1750695095071,-460.0,0.00023851,2]
[367184362,1750695095081,-827.68,0.00023851,2]
[367184363,1750695095091,-460.0,0.00023851,2]
[367184364,1750695095100,-460.0,0.00023851,2]
[367184365,1750695095110,-752.67,0.00023851,2]
[367184366,1750695095120,-312.71694233,0.00023851,2]
[367184367,1750695095130,-500.0,0.00023851,2]
[367184368,1750695095139,-460.0,0.00023851,2]
[367184369,1750695095150,-203.80768394,0.00023851,2]
[367184370,1750695095159,-911.77,0.00023851,2]
[367184371,1750695095169,-460.0,0.00023851,2]
[367184372,1750695095179,-534.54,0.00023851,2]
[367184373,1750695095189,-725.0,0.00023851,2]
[367184374,1750695095199,-460.0,0.00023851,2]
[367184375,1750695095211,-1633.04,0.00023851,2]
[367184376,1750695095221,-529.23,0.00023851,2]
[367184377,1750695095231,-460.0,0.00023851,2]
[367184378,1750695095240,-460.0,0.00023851,2]
[367184379,1750695095250,-460.0,0.00023851,2]
[367184380,1750695095259,-460.0,0.00023851,2]
[367184381,1750695095268,-507.07,0.00023851,2]
[367184382,1750695095279,-608.9,0.00023851,2]
[367184383,1750695095289,-500.0,0.00023873,2]
[367184384,1750695095300,-197.68801559,0.00023873,2]
[367184385,1750695095310,-500.0,0.00023873,2]
[367184386,1750695095321,-150.0,0.00023873,2]
[367184387,1750695095330,-150.0,0.00023873,2]
[367184388,1750695095340,-793.19,0.00023898,2]
[367184389,1750695095350,-460.0,0.00023898,2]
[367184390,1750695095360,-460.0,0.00023898,2]
[367184391,1750695095370,-1166.81,0.00023898,2]
[367184392,1750695095380,-2699.37,0.00023898,2]
[367184393,1750695095390,-1049.98,0.00023898,2]
[367184394,1750695095399,-653.64,0.00023898,2]
[367184395,1750695095409,-556.62,0.00023898,2]
[367184396,1750695095419,-607.5,0.00023898,2]
[367184397,1750695095429,-460.0,0.00023898,2]
[367184398,1750695095439,-739.3,0.00023898,2]
[367184399,1750695095448,-460.0,0.00023898,2]
[367184400,1750695095459,-2097.03,0.00023898,2]
[367184401,1750695095470,-2271.15,0.00023898,2]
[367184402,1750695095480,-1150.94,0.00023898,2]
[367184403,1750695095490,-2679.84,0.00023898,2]
[367184404,1750695095500,-16823.56,0.00023898,2]
[367184405,1750695095510,-475.0,0.00023899,2]
[367184406,1750695095523,-406734.11457233,0.000239,2]
[367184407,1750695095532,-86296.46442573,0.000239,2]
[367184408,1750695095543,-3000.0,0.000239,2]
[367184409,1750695095553,-151.0,0.000239,7]
[367184410,1750695095563,-151.0,0.000239,7]
[367184411,1750695095573,-1221.69,0.000239,2]
[367184412,1750695095582,-460.0,0.000239,2]
[367184413,1750695095593,-1343.17,0.000239,2]
[367184414,1750695095604,-648.91,0.000239,2]
[367184415,1750695095614,-460.0,0.000239,2]
[367184416,1750695095623,-756.65,0.000239,2]
[367184417,1750695095633,-3518.29,0.000239,2]
[367184418,1750695095643,-460.0,0.000239,2]
[367184419,1750695095653,-460.0,0.000239,2]
[367184420,1750695095662,-460.0,0.000239,2]
[367184421,1750695095671,-1125.19,0.000239,2]
[367184422,1750695095681,-460.0,0.000239,2]
[367184423,1750695095690,-722.87,0.000239,2]
[367184424,1750695095700,-460.0,0.000239,2]
[367184425,1750695095710,-338.794941,0.000239,7]
[367184426,1750695095723,-338.794947,0.000239,7]
[367184427,1750695095733,-151.0,0.000239,7]
[367184428,1750695095742,-486.89,0.000239,2]
[367184429,1750695095752,-460.0,0.000239,2]
[367184430,1750695095762,-832.81,0.000239,2]
[367184431,1750695095772,-1186.537698,0.000239,2]
[367184432,1750695095782,-1186.537693,0.000239,2]
[367184433,1750695095793,-746.46,0.000239,2]
[367184434,1750695095802,-460.0,0.000239,2]
[367184435,1750695095812,-460.0,0.000239,2]
[367184436,1750695095822,-993.68,0.000239,2]
[367184437,1750695095832,-913.06,0.000239,2]
[367184438,1750695095842,-663.99,0.000239,2]
[367184439,1750695095851,-495.38,0.000239,2]
[367184440,1750695095861,-700.84,0.000239,2]
[367184441,1750695095870,-1058.12,0.000239,2]
[367184442,1750695095879,-3000.0,0.0002391,2]
[367184443,1750695095889,-3000.0,0.0002392,2]
[367184444,1750695095900,-3000.0,0.0002393,2]
[367184445,1750695095910,-3000.0,0.0002394,2]
[367184446,1750695095919,-3000.0,0.0002395,2]
[367184447,1750695095929,-3000.0,0.0002396,2]
[367184448,1750695095939,-2500.0,0.00023964,2]
[367184449,1750695095948,-3000.0,0.0002397,2]
[367184450,1750695095958,-12500.0,0.00023973,3]
[367184451,1750695095968,-3000.0,0.0002398,2]
[367184452,1750695095980,-3000.0,0.0002399,2]
[367184453,1750695095990,-500.0,0.00024,2]
[367184454,1750695095999,-152.56303845,0.00024,2]
[367184455,1750695096009,-38264.16244239,0.00024,2]
[367184456,1750695096019,-452.03672817,0.00024,2]
[367184457,1750695096028,-56651.0,0.00024,2]
[367184458,1750695096038,-3000.0,0.00024,2]
[367184459,1750695096048,-213.63163053,0.00024,3]
[367184460,1750695096058,-213.63163053,0.00024,3]
[367184461,1750695096067,-213.63163053,0.00024,7]
[367184462,1750695096077,-160.0,0.00024,3]
[367184463,1750695096088,-2008.48,0.00024,2]
[367184464,1750695096097,-160.0,0.00024,3]
[367184465,1750695096106,-158.6,0.00024,2]
[367184466,1750695096116,-846.53928378,0.00024,3]
[367184467,1750695096126,-230.18214666,0.00024,3]
[367184468,1750695096136,-230.18214666,0.00024,7]
[367184469,1750695096147,-160.0,0.00024,3]
[367184470,1750695096157,-836.70095952,0.00024,3]
[367184471,1750695096168,-160.0,0.00024,3]
[367184472,1750695096178,-425.08510397,0.00024,3]
[367184473,1750695096188,-425.08510397,0.00024,7]
[367184474,1750695096198,-12553.69357174,0.00024,3]
[367184475,1750695096209,-3000.0,0.0002401,2]
[367184476,1750695096219,-590.55396705,0.0002401,2]
[367184477,1750695096230,-460.0,0.0002401,2]
[367184478,1750695096240,-460.0,0.0002401,2]
[367184479,1750695096249,-571.09,0.0002401,2]
[367184480,1750695096259,-591.18,0.0002401,2]
[367184481,1750695096269,-460.0,0.0002401,2]
[367184482,1750695096279,-695.26,0.0002401,2]
[367184483,1750695096288,-460.0,0.0002401,2]
[367184484,1750695096297,-460.0,0.0002401,2]
[367184485,1750695096307,-3000.0,0.0002402,2]
[367184486,1750695096316,-234.46,0.00024029,2]
[367184487,1750695096326,-3000.0,0.0002403,2]
[367184488,1750695096335,-3000.0,0.0002404,2]
[367184489,1750695096345,-1122.96,0.00024048,2]
[367184490,1750695096354,-212.15304557,0.00024048,2]
[367184491,1750695096364,-870.0,0.00024048,2]
[367184492,1750695096374,-467.63,0.00024048,2]
[367184493,1750695096384,-460.0,0.00024048,2]
[367184494,1750695096394,-568.24,0.00024048,2]
[367184495,1750695096403,-460.0,0.00024048,2]
[367184496,1750695096412,-713.65,0.00024048,2]
[367184497,1750695096422,-6530.67,0.00024048,2]
[367184498,1750695096431,-460.0,0.00024048,2]
[367184499,1750695096442,-3000.0,0.0002405,2]
[367184500,1750695096452,-460.0,0.00024056,2]
[367184501,1750695096463,-1117.73,0.00024056,2]
[367184502,1750695096474,-460.0,0.00024056,2]
[367184503,1750695096483,-1093.95,0.00024056,2]
[367184504,1750695096492,-460.0,0.00024056,2]
[367184505,1750695096502,-1143.04,0.00024056,2]
[367184506,1750695096512,-460.0,0.00024057,2]
[367184507,1750695096523,-1364.13,0.00024057,2]
[367184508,1750695096534,-460.0,0.00024057,2]
[367184509,1750695096544,-792.16,0.00024057,2]
[367184510,1750695096555,-701.88,0.00024057,2]
[367184511,1750695096566,-1076.17,0.00024057,2]
[367184512,1750695096578,-593.68,0.00024057,2]
[367184513,1750695096588,-646.56,0.00024058,2]
[367184514,1750695096597,-572.49,0.00024058,2]
[367184515,1750695096608,-460.0,0.00024058,2]
[367184516,1750695096618,-5755.87,0.00024058,2]
[367184517,1750695096630,-6124.54,0.00024058,2]
[367184518,1750695096640,-460.0,0.00024058,2]
[367184519,1750695096651,-1683.77,0.00024058,2]
[367184520,1750695096660,-696.61,0.00024058,2]
[367184521,1750695096670,-1042.25,0.00024058,2]
[367184522,1750695096679,-460.0,0.00024058,2]
[367184523,1750695096690,-460.0,0.00024058,2]
[367184524,1750695096701,-2967.75,0.00024058,2]
[367184525,1750695096711,-6587.16,0.00024058,2]
[367184526,1750695096721,-1335.52,0.00024058,2]
[367184527,1750695096730,-460.0,0.00024058,2]
[367184528,1750695096739,-2444.61,0.00024058,2]
[367184529,1750695096749,-816.98,0.00024058,2]
[367184530,1750695096759,-2026.45,0.00024058,2]
[367184531,1750695096769,-4341.83,0.00024058,2]
[367184532,1750695096779,-1295.39,0.00024058,2]
[367184533,1750695096789,-1428.47,0.00024058,2]
[367184534,1750695096799,-716.5,0.00024059,2]
[367184535,1750695096808,-712.96,0.00024059,2]
[367184536,1750695096816,-694.31,0.00024059,2]
[367184537,1750695096826,-585.87,0.00024059,2]
[367184538,1750695096837,-460.0,0.00024059,2]
[367184539,1750695096847,-460.0,0.00024059,2]
[367184540,1750695096857,-460.0,0.00024059,2]
[367184541,1750695096867,-1472.57,0.00024059,2]
[367184542,1750695096876,-1101.95,0.00024059,2]
[367184543,1750695096886,-697.18,0.00024059,2]
[367184544,1750695096895,-519.63,0.00024059,2]
[367184545,1750695096904,-506.34,0.00024059,2]
[367184546,1750695096914,-460.0,0.00024059,2]
[367184547,1750695096924,-529.96,0.00024059,2]
[367184548,1750695096934,-460.0,0.00024059,2]
[367184549,1750695096944,-460.0,0.00024059,2]
[367184550,1750695096954,-460.0,0.00024059,2]
[367184551,1750695096964,-505.49584676,0.00024059,2]
[367184552,1750695096974,-772.43,0.00024059,2]
[367184553,1750695096983,-460.0,0.00024059,2]
[367184554,1750695096992,-703.03,0.00024059,2]
[367184555,1750695097001,-2988.47,0.00024059,2]
[367184556,1750695097011,-8032.03,0.00024059,2]
[367184557,1750695097021,-460.0,0.00024059,2]
[367184558,1750695097031,-460.0,0.00024059,2]
[367184559,1750695097042,-1030.53,0.00024059,2]
[367184560,1750695097051,-629.75,0.00024059,2]
[367184561,1750695097060,-597.62,0.00024059,2]
[367184562,1750695097070,-643.92,0.00024059,2]
[367184563,1750695097080,-460.0,0.00024059,2]
[367184564,1750695097090,-699.24,0.00024059,2]
[367184565,1750695097100,-460.0,0.00024059,2]
[367184566,1750695097109,-460.0,0.00024059,2]
[367184567,1750695097119,-249.62681152,0.00024059,2]
[367184568,1750695097129,-460.0,0.00024059,2]
[367184569,1750695097138,-3562.05,0.00024059,2]
[367184570,1750695097147,-460.0,0.00024059,2]
[367184571,1750695097156,-1834.78,0.00024059,2]
[367184572,1750695097166,-1370.2,0.00024059,2]
[367184573,1750695097176,-460.0,0.00024059,2]
[367184574,1750695097186,-460.0,0.00024059,2]
[367184575,1750695097195,-893.28,0.00024059,2]
[367184576,1750695097205,-460.0,0.00024059,2]
[367184577,1750695097214,-460.0,0.00024059,2]
[367184578,1750695097225,-1685.24,0.00024059,2]
[367184579,1750695097235,-464.44,0.00024059,2]
[367184580,1750695097243,-544.51,0.00024059,2]
[367184581,1750695097253,-460.0,0.00024059,2]
[367184582,1750695097262,-481.68,0.00024059,2]
[367184583,1750695097271,-460.0,0.00024059,2]
[367184584,1750695097281,-460.0,0.00024059,2]
[367184585,1750695097290,-631.24,0.00024059,2]
[367184586,1750695097299,-460.0,0.00024059,2]
[367184587,1750695097308,-460.0,0.00024059,2]
[367184588,1750695097318,-468.97,0.00024059,2]
[367184589,1750695097327,-952.49,0.00024059,2]
[367184590,1750695097337,-547.71,0.00024059,2]
[367184591,1750695097346,-886.57,0.00024059,2]
[367184592,1750695097355,-3204.23,0.00024059,2]
[367184593,1750695097365,-1147.11,0.00024059,2]
[367184594,1750695097374,-1939.51,0.00024059,2]
[367184595,1750695097384,-488.19,0.00024059,2]
[367184596,1750695097393,-460.0,0.00024059,2]
[367184597,1750695097402,-1339.33,0.00024059,2]
[367184598,1750695097412,-619.12,0.00024059,2]
[367184599,1750695097422,-778.82,0.00024059,2]
[367184600,1750695097431,-482.75,0.00024059,2]
[367184601,1750695097440,-1075.57,0.00024059,2]
[367184602,1750695097450,-1310.04,0.00024059,2]
[367184603,1750695097460,-460.0,0.00024059,2]
[367184604,1750695097469,-472.68,0.00024059,2]
[367184605,1750695097480,-1833.22,0.00024059,2]
[367184606,1750695097490,-717.95,0.00024059,2]
[367184607,1750695097499,-703.62,0.00024059,2]
[367184608,1750695097508,-3000.0,0.0002406,2]
[367184609,1750695097519,-460.0,0.0002406,2]
[367184610,1750695097530,-460.0,0.0002406,2]
[367184611,1750695097539,-151.0,0.00024061,7]
[367184612,1750695097549,-460.0,0.00024061,2]
[367184613,1750695097559,-899.93,0.00024061,2]
[367184614,1750695097568,-1247.69,0.00024061,2]
[367184615,1750695097578,-1042.81,0.00024061,2]
[367184616,1750695097587,-470.17,0.00024061,2]
[367184617,1750695097599,-460.0,0.00024061,2]
[367184618,1750695097609,-1298.26,0.00024061,2]
[367184619,1750695097619,-2612.41,0.00024061,2]
[367184620,1750695097628,-460.0,0.00024061,2]
[367184621,1750695097638,-460.0,0.00024061,2]
[367184622,1750695097647,-460.0,0.00024061,2]
[367184623,1750695097656,-535.48,0.00024061,2]
[367184624,1750695097667,-460.0,0.00024061,2]
[367184625,1750695097676,-541.1,0.00024061,2]
[367184626,1750695097685,-480.44,0.00024061,2]
[367184627,1750695097695,-460.0,0.00024061,2]
[367184628,1750695097704,-1061.12,0.00024061,2]
[367184629,1750695097713,-1081.71,0.00024061,2]
[367184630,1750695097724,-863.96,0.00024061,2]
[367184631,1750695097734,-667.4,0.00024061,2]
[367184632,1750695097744,-814.51,0.00024061,2]
[367184633,1750695097753,-1796.51,0.00024061,2]
[367184634,1750695097763,-620.23,0.00024061,2]
[367184635,1750695097772,-460.0,0.00024061,2]
[367184636,1750695097782,-908.71,0.00024061,2]
[367184637,1750695097792,-1836.22,0.00024061,2]
[367184638,1750695097803,-2045.52,0.00024061,2]
[367184639,1750695097812,-460.0,0.00024061,2]
[367184640,1750695097822,-460.0,0.00024061,2]
[367184641,1750695097832,-1612.44,0.00024061,2]
[367184642,1750695097841,-1029.94,0.00024061,2]
[367184643,1750695097851,-6941.15,0.00024061,2]
[367184644,1750695097861,-6321.75,0.00024061,2]
[367184645,1750695097871,-794.47,0.00024061,2]
[367184646,1750695097881,-313.44889633,0.00024061,2]
[367184647,1750695097890,-460.0,0.00024061,2]
[367184648,1750695097901,-6105.4,0.00024061,2]
[367184649,1750695097909,-4430.2,0.00024061,2]
[367184650,1750695097919,-893.18,0.00024061,2]
[367184651,1750695097928,-1681.36,0.00024061,2]
[367184652,1750695098075,-550.8,0.00024061,2]
[367184653,1750695098102,-945.85,0.00024061,2]
[367184654,1750695098113,-1150.64,0.00024061,2]
[367184655,1750695098122,-505.55,0.00024061,2]
[367184656,1750695098132,-460.0,0.00024061,2]
[367184657,1750695098143,-7241.11,0.00024061,2]
[367184658,1750695098152,-4135.45,0.00024061,2]
[367184659,1750695098162,-701.76,0.00024061,2]
[367184660,1750695098173,-579.96,0.00024061,2]
[367184661,1750695098183,-460.0,0.00024061,2]
[367184662,1750695098194,-503.24,0.00024061,2]
[367184663,1750695098204,-950.84,0.00024061,2]
[367184664,1750695098214,-742.78,0.00024061,2]
[367184665,1750695098225,-1064.83,0.00024061,2]
[367184666,1750695098234,-3000.0,0.0002407,2]
[367184667,1750695098245,-3000.0,0.0002408,2]
[367184668,1750695098255,-3000.0,0.0002409,2]
[367184669,1750695098265,-3000.0,0.000241,2]
[367184670,1750695098274,-160.0,0.000241,7]
[367184671,1750695098285,-64365.6,0.000241,2]
[367184672,1750695098295,-160.0,0.000241,7]
[367184673,1750695098305,-460.0,0.00024109,2]
[367184674,1750695098315,-460.0,0.00024109,2]
[367184675,1750695098325,-460.0,0.00024109,2]
[367184676,1750695098335,-460.0,0.00024109,2]
[367184677,1750695098344,-460.0,0.00024109,2]
[367184678,1750695098354,-460.0,0.00024109,2]
[367184679,1750695098363,-460.0,0.00024109,2]
[367184680,1750695098372,-460.0,0.00024109,2]
[367184681,1750695098381,-460.0,0.00024109,2]
[367184682,1750695098391,-460.0,0.00024109,2]
[367184683,1750695098400,-3000.0,0.0002411,2]
[367184684,1750695098411,-3000.0,0.0002412,2]
[367184685,1750695098422,-581.96,0.00024125,2]
[367184686,1750695098431,-460.0,0.00024125,2]
[367184687,1750695098444,-460.0,0.00024125,2]
[367184688,1750695098454,-572.39,0.00024125,2]
[367184689,1750695098463,-460.0,0.00024125,2]
[367184690,1750695098472,-460.0,0.00024125,2]
[367184691,1750695098482,-1389.87,0.00024125,2]
[367184692,1750695098491,-992.22,0.00024125,2]
[367184693,1750695098501,-380.8926435,0.00024125,2]
[367184694,1750695098510,-460.0,0.00024125,2]
[367184695,1750695098522,-460.0,0.00024125,2]
[367184696,1750695098533,-200.0,0.00024125,2]
[367184697,1750695098543,-460.0,0.00024125,2]
[367184698,1750695098552,-460.0,0.00024125,2]
[367184699,1750695098564,-460.0,0.00024125,2]
[367184700,1750695098576,-827.68,0.00024125,2]
[367184701,1750695098586,-460.0,0.00024125,2]
[367184702,1750695098596,-460.0,0.00024125,2]
[367184703,1750695098608,-752.67,0.00024125,2]
[367184704,1750695098617,-598.13331321,0.00024125,2]
[367184705,1750695098627,-460.0,0.00024125,2]
[367184706,1750695098636,-911.77,0.00024125,2]
[367184707,1750695098646,-460.0,0.00024125,2]
[367184708,1750695098654,-534.54,0.00024125,2]
[367184709,1750695098664,-725.0,0.00024125,2]
[367184710,1750695098673,-460.0,0.00024125,2]
[367184711,1750695098683,-1633.04,0.00024125,2]
[367184712,1750695098693,-529.23,0.00024125,2]
[367184713,1750695098703,-460.0,0.00024125,2]
[367184714,1750695098712,-460.0,0.00024125,2]
[367184715,1750695098722,-460.0,0.00024125,2]
[367184716,1750695098731,-460.0,0.00024125,2]
[367184717,1750695098741,-507.07,0.00024125,2]
[367184718,1750695098751,-608.9,0.00024125,2]
[367184719,1750695098761,-3000.0,0.0002413,2]
[367184720,1750695098771,-2500.0,0.00024131,2]
[367184721,1750695098780,-2500.0,0.00024131,2]
[367184722,1750695098790,-3000.0,0.0002414,2]
[367184723,1750695098799,-3000.0,0.0002415,2]
[367184724,1750695098809,-3000.0,0.0002416,2]
[367184725,1750695098819,-2500.0,0.00024164,2]
[367184726,1750695098828,-3000.0,0.0002417,2]
[367184727,1750695098838,-793.19,0.00024172,2]
[367184728,1750695098848,-460.0,0.00024172,2]
[367184729,1750695098857,-460.0,0.00024172,2]
[367184730,1750695098867,-1166.81,0.00024172,2]
[367184731,1750695098878,-2699.37,0.00024172,2]
[367184732,1750695098887,-1049.98,0.00024172,2]
[367184733,1750695098897,-653.64,0.00024172,2]
[367184734,1750695098907,-556.62,0.00024172,2]
[367184735,1750695098916,-607.5,0.00024172,2]
[367184736,1750695098925,-460.0,0.00024172,2]
[367184737,1750695098935,-739.3,0.00024172,2]
[367184738,1750695098945,-460.0,0.00024172,2]
[367184739,1750695098955,-2097.03,0.00024172,2]
[367184740,1750695098965,-2271.15,0.00024172,2]
[367184741,1750695098975,-1150.94,0.00024172,2]
[367184742,1750695098984,-2679.84,0.00024172,2]
[367184743,1750695098994,-16823.56,0.00024172,2]
[367184744,1750695099003,-1221.69,0.00024174,2]
[367184745,1750695099013,-460.0,0.00024174,2]
[367184746,1750695099023,-1343.17,0.00024174,2]
[367184747,1750695099033,-648.91,0.00024174,2]
[367184748,1750695099043,-460.0,0.00024174,2]
[367184749,1750695099053,-756.65,0.00024174,2]
[367184750,1750695099064,-3518.29,0.00024174,2]
[367184751,1750695099073,-237.27987746,0.00024174,2]
[367184752,1750695099082,-460.0,0.00024174,2]
[367184753,1750695099092,-460.0,0.00024174,2]
[367184754,1750695099101,-1125.19,0.00024174,2]
[367184755,1750695099112,-460.0,0.00024174,2]
[367184756,1750695099122,-722.87,0.00024174,2]
[367184757,1750695099132,-460.0,0.00024174,2]
[367184758,1750695099143,-486.89,0.00024174,2]
[367184759,1750695099153,-460.0,0.00024174,2]
[367184760,1750695099163,-832.81,0.00024174,2]
[367184761,1750695099173,-746.46,0.00024174,2]
[367184762,1750695099182,-369.27939883,0.00024174,2]
[367184763,1750695099192,-460.0,0.00024174,2]
[367184764,1750695099202,-993.68,0.00024174,2]
[367184765,1750695099211,-913.06,0.00024174,2]
[367184766,1750695099221,-663.99,0.00024174,2]
[367184767,1750695099230,-495.38,0.00024174,2]
[367184768,1750695099239,-700.84,0.00024174,2]
[367184769,1750695099249,-1058.12,0.00024174,2]